lending/lending_fUSD_20260110
["ID","MTS","AMOUNT","RATE_DAILY","PERIOD"]
[401234313,1768060243417,-1047984.72622212,0.00018,2]
[401234316,1768060243427,-3003785.53705171,0.00018,2]
[401234351,1768060243736,-2479.91569322,0.00018,2]
[401234353,1768060243747,-2346.6090531,0.00018,2]
[401234370,1768060244384,-0.01930158,0.00018,2]
[401234371,1768060244511,-151.0,0.00015706,2]
[401234372,1768060244521,-151.0,0.00015706,2]
[401234373,1768060244531,-160.28138314,0.0001782,2]
[401234391,1768060245627,-1094.15003944,0.00017,12]
[401234392,1768060245862,-1394.58457366,0.00017,12]
[401234393,1768060245872,-1151.71861686,0.0001782,2]
[401234394,1768060245882,-52593.97257617,0.00018,2]
[401234395,1768060245893,-21858.69824548,0.00018,2]
[401234396,1768060245906,-100743.55343815,0.00018,2]
[401234398,1768060255805,1500.0,0.00013156,2]
[401234399,1768060277390,8500.01,0.00013848,2]
[401234400,1768060277428,10000.01,0.00013848,2]
[401234401,1768060277471,10000.01,0.00013848,2]
[401234402,1768060277510,10000.01,0.00013848,2]
[401234403,1768060277547,10000.01,0.00013848,2]
[401234404,1768060277583,10000.01,0.00013848,2]
[401234405,1768060277619,10000.01,0.00013848,2]
[401234406,1768060277656,10000.01,0.00013848,2]
[401234407,1768060277693,10000.01,0.00013848,2]
[401234408,1768060277732,10000.01,0.00013848,2]
[401234440,1768060321267,300.0,0.00013847,2]
[401234476,1768060376017,1192.415367,0.00013155,2]
[401234477,1768060381587,300.0,0.00013847,2]
[401234479,1768060441275,270.0,0.00013847,2]
[401234480,1768060442096,150.0,0.00013847,2]
[401234505,1768060501421,300.0,0.00013847,2]
[401234506,1768060501463,1200.0,0.00013847,2]
[401234571,1768060622546,150.0,0.00013847,2]
[401234573,1768060627148,-461.22934968,0.00013848,2]
[401234574,1768060628704,-163.8389322,0.00013848,2]
[401234575,1768060630822,-371.45578516,0.00013848,2]
[401234576,1768060632421,-210.73445015,0.00013848,2]
[401234577,1768060634883,-736.93334063,0.00013848,2]
[401234578,1768060638132,-325.26576385,0.00013848,2]
[401234580,1768060655927,2595.140358,0.00013156,2]
[401234585,1768060751152,636.20066857,0.00013828,2]
[401234586,1768060762609,540.66518366,0.00013828,2]
[401234588,1768060794720,174.19931716,0.00013828,2]
[401234589,1768060801625,1200.0,0.00013847,2]
[401234606,1768060835024,174.19931715,0.00013748,2]
[401234607,1768060882369,500.0,0.00013847,2]
[401234608,1768060882429,317.18978846,0.00013847,2]
[401234609,1768060882456,182.81021154,0.00013847,2]
[401234610,1768060882513,500.0,0.00013847,2]
[401234611,1768060882571,500.0,0.00013847,2]
[401234612,1768060882619,499.99999999,0.00013847,2]
[401234613,1768060882669,500.0,0.00013847,2]
[401234614,1768060882732,500.0,0.00013847,2]
[401234615,1768060882779,455.71446841,0.00013847,2]
[401234616,1768060882831,500.0,0.00013847,2]
[401234617,1768060882888,467.92069426,0.00013847,2]
[401234618,1768060882956,500.0,0.00013847,2]
[401234619,1768060883043,500.0,0.00013847,2]
[401234620,1768060883104,500.0,0.00013847,2]
[401234621,1768060883162,500.0,0.00013847,2]
[401234622,1768060883231,500.0,0.00013847,2]
[401234623,1768060883291,500.0,0.00013847,2]
[401234624,1768060883350,500.0,0.00013847,2]
[401234625,1768060883413,500.0,0.00013847,2]
[401234626,1768060883476,500.0,0.00013847,2]
[401234627,1768060883559,500.0,0.00013847,2]
[401234628,1768060883614,500.0,0.00013847,2]
[401234629,1768060883668,393.5646258,0.00013847,2]
[401234630,1768060883704,106.4353742,0.00013847,2]
[401234631,1768060884138,500.0,0.00013847,2]
[401234632,1768060884190,500.0,0.00013847,2]
[401234633,1768060884251,500.0,0.00013847,2]
[401234634,1768060884311,500.0,0.00013847,2]
[401234635,1768060884389,500.0,0.00013847,2]
[401234636,1768060884446,500.0,0.00013847,2]
[401234637,1768060884495,500.0,0.00013847,2]
[401234638,1768060884554,500.0,0.00013847,2]
[401234639,1768060884611,198.47810206,0.00013847,2]
[401234640,1768060884679,500.0,0.00013847,2]
[401234641,1768060884793,500.0,0.00013847,2]
[401234642,1768060884858,500.0,0.00013847,2]
[401234647,1768060892268,2418.03995662,0.00013748,2]
[401234648,1768060894021,1777.05656712,0.00013571,2]
[401234649,1768060894050,366.48143288,0.00013571,2]
[401234650,1768060894379,179.537,0.00013571,2]
[401234658,1768060902887,360.44345578,0.00013748,2]
[401234659,1768060919039,500.0,0.00013847,2]
[401234660,1768060919107,500.0,0.00013847,2]
[401234661,1768060919169,500.0,0.00013847,2]
[401234662,1768060919230,500.0,0.00013847,2]
[401234663,1768060919294,500.0,0.00013847,2]
[401234664,1768060919355,500.0,0.00013847,2]
[401234665,1768060919412,500.0,0.00013847,2]
[401234666,1768060919468,500.0,0.00013847,2]
[401234667,1768060919533,500.0,0.00013847,2]
[401234668,1768060919602,500.0,0.00013847,2]
[401234669,1768060919661,500.0,0.00013847,2]
[401234670,1768060919729,500.0,0.00013847,2]
[401234671,1768060919786,500.0,0.00013847,2]
[401234672,1768060919849,500.0,0.00013847,2]
[401234673,1768060919915,500.0,0.00013847,2]
[401234674,1768060919970,500.0,0.00013847,2]
[401234675,1768060920032,500.0,0.00013847,2]
[401234676,1768060920087,500.0,0.00013847,2]
[401234677,1768060920160,93.54811134,0.00013847,2]
[401234678,1768060920200,406.45188866,0.00013847,2]
[401234679,1768060920260,500.0,0.00013847,2]
[401234680,1768060920319,500.0,0.00013847,2]
[401234681,1768060920381,500.0,0.00013847,2]
[401234682,1768060920438,386.30291854,0.00013847,2]
[401234683,1768060920494,500.0,0.00013847,2]
[401234693,1768061011240,500.0,0.00013847,2]
[401234694,1768061011297,558.47810206,0.00013847,2]
[401234695,1768061011349,500.0,0.00013847,2]
[401234696,1768061011407,500.0,0.00013847,2]
[401234697,1768061011457,500.0,0.00013847,2]
[401234698,1768061011508,500.0,0.00013847,2]
[401234699,1768061011564,500.0,0.00013847,2]
[401234700,1768061011610,500.0,0.00013847,2]
[401234701,1768061011661,500.0,0.00013847,2]
[401234702,1768061011714,500.0,0.00013847,2]
[401234703,1768061014381,1166.50364722,0.00013079,2]
[401234704,1768061020190,174.19931715,0.00013748,2]
[401234705,1768061035013,174.19931715,0.00013748,2]
[401234706,1768061043180,240.29563718,0.00013748,2]
[401234707,1768061047647,173.89,0.00012924,2]
[401234709,1768061056466,219.68917204,0.00013748,2]
[401234710,1768061056497,784.75382796,0.00013748,2]
[401234711,1768061062558,1527.6098,0.00013748,2]
[401234715,1768061096312,280.75042259,0.00013748,2]
[401234716,1768061101299,1200.0,0.00013847,2]
[401234724,1768061137468,856.42516107,0.00013748,2]
[401234733,1768061165523,174.19931715,0.00013748,2]
[401234738,1768061170447,174.19931715,0.00013748,2]
[401234753,1768061198493,160.19709146,0.00013748,2]
[401234797,1768061295950,174.19931715,0.00013748,2]
[401234802,1768061304568,4667.67574547,0.00013748,2]
[401234803,1768061304598,678.39060337,0.00013748,2]
[401234806,1768061307558,9321.61939663,0.00013748,2]
[401234807,1768061307600,10000.01,0.00013748,2]
[401234808,1768061307640,10000.01,0.00013748,2]
[401234809,1768061307681,10000.01,0.00013748,2]
[401234810,1768061307721,10000.01,0.00013748,2]
[401234811,1768061307761,10000.01,0.00013748,2]
[401234812,1768061307803,10000.01,0.00013748,2]
[401234813,1768061307842,10000.01,0.00013748,2]
[401234814,1768061307883,10000.01,0.00013748,2]
[401234842,1768061347247,-250.04009246,0.00013748,2]
[401234856,1768061378921,562.05312245,0.00013747,2]
[401234869,1768061401287,1200.0,0.00013747,2]
[401234887,1768061410973,174.19931715,0.00013648,2]
[401234923,1768061431738,-15451.24970056,0.00013748,2]
[401234924,1768061431749,-424.72961453,0.00013748,2]
[401234925,1768061431761,-1182.79273477,0.00013748,2]
[401234926,1768061431772,-9124.71164356,0.00013748,2]
[401234927,1768061431795,-631.40074476,0.00013748,2]
[401234928,1768061431807,-149911.105234,0.00013748,2]
[401234929,1768061431818,-36593.06190346,0.00013748,2]
[401234930,1768061431831,-3724.77211781,0.00013748,2]
[401234931,1768061431855,-3564.76,0.00013748,2]
[401234932,1768061431867,-5351.0,0.00013748,2]
[401234934,1768061431878,-3611.19814678,0.00013748,2]
[401234936,1768061431911,-3644.00137046,0.00013748,2]
[401234937,1768061431923,-4105.49267856,0.00013748,2]
[401234993,1768061437811,-4306.00298526,0.00013748,2]
[401234994,1768061437823,-1457.29023885,0.00013748,2]
[401234995,1768061437866,-3545.62120439,0.00013748,2]
[401234996,1768061437877,-7145.191613,0.00013748,2]
[401234997,1768061437923,-29031.7208,0.00013748,2]
[401234998,1768061437934,-607.42013645,0.00013748,2]
[401235158,1768061439844,-372.86839505,0.00013748,2]
[401235176,1768061440014,-430.4257349,0.00013748,2]
[401235178,1768061440025,-2844.23565072,0.00013748,2]
[401235182,1768061440058,-591.46997237,0.00013748,2]
[401235184,1768061440069,-346.57913824,0.00013748,2]
[401235186,1768061440081,-853.42086176,0.00013748,2]
[401235199,1768061440202,-1405.08006027,0.00013748,2]
[401235205,1768061440255,-3398.94524865,0.00013748,2]
[401235207,1768061440266,-282.63999976,0.00013748,2]
[401235209,1768061440277,-18165.72006814,0.00013748,2]
[401235574,1768061443939,-6019.73832867,0.00013748,2]
[401235576,1768061443951,-43465.0,0.00013748,2]
[401235578,1768061443963,-5758.36176899,0.00013748,2]
[401235610,1768061445173,-713.13,0.00013748,2]
[401235611,1768061445577,-5387.57383662,0.00013748,2]
[401235613,1768061445593,-490.0,0.00013748,2]
[401235614,1768061445607,-262260.40472266,0.00013748,2]
[401235615,1768061445619,-3065.82931984,0.00013748,2]
[401235619,1768061445775,-349.29471075,0.00013748,2]
[401235620,1768061445789,-304.31265084,0.00013748,2]
[401235621,1768061445801,-403.92,0.00013748,2]
[401235622,1768061445812,-259.19169647,0.00013748,2]
[401235624,1768061445824,-2493.1,0.00013748,2]
[401235626,1768061445836,-649.83334176,0.00013748,2]
[401235627,1768061445866,-322.8916,0.00013748,2]
[401235628,1768061445877,-4996.40416856,0.00013748,2]
[401235629,1768061445911,-2954.93571423,0.00013748,2]
[401235630,1768061445923,-21081.93965176,0.00013748,2]
[401235631,1768061445943,-3495.83514778,0.00013748,2]
[401235632,1768061445956,-57052.06551707,0.00013748,2]
[401235637,1768061447761,-58712.74409333,0.00013748,2]
[401235638,1768061447773,-888.0,0.00013748,2]
[401235639,1768061461994,300.0,0.00013747,2]
[401235685,1768061620607,-117198.84624452,0.00013748,2]
[401235686,1768061620635,-195.0,0.00013748,2]
[401235687,1768061620663,-263.0,0.00013748,2]
[401235688,1768061631451,-169.2285654,0.00013848,2]
[401235689,1768061632457,151.0,0.00013848,2]
[401235696,1768061743508,10000.01,0.00013648,2]
[401235697,1768061743548,10000.01,0.00013648,2]
[401235698,1768061743586,10000.01,0.00013648,2]
[401235699,1768061743623,10000.01,0.00013648,2]
[401235700,1768061743659,10000.01,0.00013648,2]
[401235701,1768061743694,10000.01,0.00013648,2]
[401235702,1768061743729,10000.01,0.00013648,2]
[401235703,1768061743762,10000.01,0.00013648,2]
[401235704,1768061743796,10000.01,0.00013648,2]
[401235705,1768061743829,10000.01,0.00013648,2]
[401235706,1768061743863,899999.9,0.00013648,2]
[401235717,1768061781916,-151.0,0.00013848,2]
[401235718,1768061783077,205.68569618,0.00013848,2]
[401235719,1768061807879,566.44866449,0.00013747,2]
[401235720,1768061807936,566.44866449,0.00013747,2]
[401235721,1768061807988,566.44866449,0.00013747,2]
[401235722,1768061808039,566.44866449,0.00013747,2]
[401235723,1768061808097,566.44866449,0.00013747,2]
[401235724,1768061808145,566.44866449,0.00013747,2]
[401235725,1768061808197,566.44866449,0.00013747,2]
[401235726,1768061808247,566.44866449,0.00013747,2]
[401235727,1768061808297,566.44866449,0.00013747,2]
[401235728,1768061808348,566.44866449,0.00013747,2]
[401235729,1768061808400,566.44866449,0.00013747,2]
[401235730,1768061808448,566.44866449,0.00013747,2]
[401235731,1768061808496,566.44866449,0.00013747,2]
[401235732,1768061808543,566.44866449,0.00013747,2]
[401235733,1768061808589,566.44866449,0.00013747,2]
[401235734,1768061808642,566.44866449,0.00013747,2]
[401235735,1768061808688,566.44866449,0.00013747,2]
[401235736,1768061808734,370.38270367,0.00013747,2]
[401235737,1768061808769,196.06596082,0.00013747,2]
[401235738,1768061808817,566.44866449,0.00013747,2]
[401235739,1768061809099,566.44866449,0.00013747,2]
[401235740,1768061809152,566.44866449,0.00013747,2]
[401235741,1768061809201,566.44866449,0.00013747,2]
[401235742,1768061809249,566.44866449,0.00013747,2]
[401235743,1768061809303,566.44866449,0.00013747,2]
[401235744,1768061809356,566.44866449,0.00013747,2]
[401235745,1768061809405,566.44866449,0.00013747,2]
[401235746,1768061809456,566.44866449,0.00013747,2]
[401235747,1768061809507,566.44866449,0.00013747,2]
[401235748,1768061809554,566.44866449,0.00013747,2]
[401235749,1768061809600,566.44866449,0.00013747,2]
[401235750,1768061809683,566.44866449,0.00013747,2]
[401235751,1768061809761,566.44866449,0.00013747,2]
[401235752,1768061809813,566.44866449,0.00013747,2]
[401235753,1768061809861,566.44866449,0.00013747,2]
[401235754,1768061809923,566.44866449,0.00013747,2]
[401235755,1768061810086,174.31674285,0.00013747,2]
[401235756,1768061810120,392.13192164,0.00013747,2]
[401235757,1768061810167,566.44866449,0.00013747,2]
[401235758,1768061810227,566.44866449,0.00013747,2]
[401235759,1768061810284,566.44866449,0.00013747,2]
[401235761,1768061875150,500.0,0.00013747,2]
[401235762,1768061875221,420.87830939,0.00013747,2]
[401235967,1768062225392,500.0,0.00013834,2]
[401236028,1768062428777,205.0,9.8e-05,2]
[401236030,1768062432333,448.97430059,0.0001305,2]
[401236031,1768062432761,259.51640205,0.000101,2]
[401236054,1768062486665,787.25604664,0.000135,2]
[401236055,1768062486819,307.11666613,0.000125,2]
[401236066,1768062514892,18453.3346503,0.0001,2]
[401236118,1768062631869,-173.375,0.0001477,2]
[401236120,1768062631880,-1715.256,0.0001477,2]
[401236122,1768062631890,-272.0,0.0001477,2]
[401236124,1768062631899,-250.0,0.00014896,2]
[401236126,1768062631909,-300.0,0.0001503,2]
[401236127,1768062631919,-1200.0,0.00015031,2]
[401236128,1768062631929,-300.0,0.00015031,2]
[401236129,1768062631939,-1200.0,0.00015031,2]
[401236130,1768062631948,-160.64501852,0.00015033,2]
[401236131,1768062631958,-160.64501852,0.00015033,2]
[401236132,1768062631967,-395.04187103,0.00015033,2]
[401236133,1768062631977,-300.0,0.0001507,2]
[401236134,1768062631987,-500.0,0.0001507,2]
[401236135,1768062631997,-500.0,0.00015071,2]
[401236136,1768062632011,-500.0,0.00015071,2]
[401236137,1768062632021,-500.0,0.00015071,2]
[401236138,1768062632041,-456.46564164,0.00015071,2]
[401236139,1768062632052,-500.0,0.00015071,2]
[401236140,1768062632063,-500.0,0.00015071,2]
[401236141,1768062632073,-500.0,0.00015071,2]
[401236142,1768062632085,-500.0,0.00015071,2]
[401236143,1768062632095,-500.0,0.00015071,2]
[401236144,1768062632105,-500.0,0.00015071,2]
[401236145,1768062632115,-500.0,0.00015071,2]
[401236147,1768062632125,-500.0,0.00015071,2]
[401236149,1768062632135,-500.0,0.00015071,2]
[401236151,1768062632145,-500.0,0.00015071,2]
[401236153,1768062632154,-500.0,0.00015071,2]
[401236155,1768062632166,-150.50152993,0.00015071,2]
[401236158,1768062632179,-349.49847007,0.00015071,2]
[401236160,1768062632188,-407.21245662,0.00015071,2]
[401236162,1768062632200,-92.78754338,0.00015071,2]
[401236164,1768062632209,-500.0,0.00015071,2]
[401236166,1768062632219,-381.39130506,0.00015071,2]
[401236168,1768062632230,-118.60869494,0.00015071,2]
[401236170,1768062632240,-500.0,0.00015071,2]
[401236172,1768062632249,-500.0,0.00015071,2]
[401236174,1768062632258,-500.0,0.00015071,2]
[401236176,1768062632268,-199.26030312,0.00015071,2]
[401236179,1768062632280,-300.73969688,0.00015071,2]
[401236181,1768062632290,-39.01290926,0.00015071,2]
[401236183,1768062632301,-460.98709074,0.00015071,2]
[401236185,1768062632312,-12.33290926,0.00015071,2]
[401236187,1768062632324,-487.66709074,0.00015071,2]
[401236189,1768062632333,-500.0,0.00015071,2]
[401236191,1768062632342,-500.0,0.00015071,2]
[401236193,1768062632353,-500.0,0.00015071,2]
[401236196,1768062632363,-500.0,0.00015071,2]
[401236198,1768062632373,-500.0,0.00015071,2]
[401236200,1768062632383,-500.0,0.00015071,2]
[401236202,1768062632392,-500.0,0.00015071,2]
[401236204,1768062632402,-500.0,0.00015071,2]
[401236206,1768062632412,-318.63288926,0.00015071,2]
[401236209,1768062632431,-181.36711074,0.00015071,2]
[401236211,1768062632441,-500.0,0.00015071,2]
[401236213,1768062632451,-212.88355678,0.00015071,2]
[401236215,1768062632461,-500.0,0.00015071,2]
[401236217,1768062632471,-74.41989326,0.00015071,2]
[401236219,1768062632482,-425.58010674,0.00015071,2]
[401236221,1768062632492,-500.0,0.00015071,2]
[401236223,1768062632501,-151.54322234,0.00015071,2]
[401236225,1768062632513,-258.20010086,0.00015071,2]
[401236228,1768062632524,-90.2566768,0.00015071,2]
[401236230,1768062632534,-500.0,0.00015071,2]
[401236232,1768062632543,-277.03797655,0.00015071,2]
[401236234,1768062632558,-222.96202345,0.00015071,2]
[401236236,1768062632567,-500.0,0.00015071,2]
[401236238,1768062632577,-500.0,0.00015071,2]
[401236240,1768062632588,-500.0,0.00015071,2]
[401236242,1768062632598,-350.33387331,0.00015071,2]
[401236244,1768062632609,-149.66612669,0.00015071,2]
[401236246,1768062632621,-500.0,0.00015071,2]
[401236248,1768062632630,-500.0,0.00015071,2]
[401236250,1768062632639,-490.93040786,0.00015071,2]
[401236252,1768062632651,-9.06959214,0.00015071,2]
[401236254,1768062632661,-500.0,0.00015071,2]
[401236256,1768062632670,-71.29102219,0.00015071,2]
[401236257,1768062632682,-428.70897781,0.00015071,2]
[401236258,1768062632692,-500.0,0.00015071,2]
[401236259,1768062632701,-216.25460984,0.00015071,2]
[401236260,1768062638062,-656.39640044,0.00015033,2]
[401236261,1768062638072,-283.74539016,0.00015071,2]
[401236262,1768062638082,-500.0,0.00015071,2]
[401236263,1768062638091,-491.31568294,0.00015071,2]
[401236264,1768062638167,-8.68431706,0.00015071,2]
[401236265,1768062638177,-500.0,0.00015071,2]
[401236266,1768062638187,-500.0,0.00015071,2]
[401236267,1768062638196,-500.0,0.00015071,2]
[401236268,1768062638205,-500.0,0.00015071,2]
[401236269,1768062638215,-500.0,0.00015071,2]
[401236270,1768062638224,-371.28835567,0.00015071,2]
[401236271,1768062638234,-500.0,0.00015071,2]
[401236272,1768062638243,-39.45831844,0.00015071,2]
[401236273,1768062638255,-424.4835102,0.00015071,2]
[401236274,1768062638266,-36.05817136,0.00015071,2]
[401236275,1768062638277,-500.0,0.00015071,2]
[401236276,1768062638287,-500.0,0.00015071,2]
[401236277,1768062638297,-500.0,0.00015071,2]
[401236278,1768062638307,-500.0,0.00015071,2]
[401236279,1768062638316,-401.93286738,0.00015071,2]
[401236280,1768062638328,-98.06713262,0.00015071,2]
[401236281,1768062638337,-500.0,0.00015071,2]
[401236282,1768062638347,-500.0,0.00015071,2]
[401236283,1768062638357,-789.93285738,0.00015072,2]
[401236284,1768062638368,-2932.29721366,0.00015072,2]
[401236820,1768062645598,-1048.0266099,0.00015072,2]
[401236824,1768062645916,-595.56076077,0.00015072,2]
[401236825,1768062646057,-616.40107695,0.00015072,2]
[401236826,1768062646069,-418.680849,0.00015072,2]
[401236830,1768062670207,1000.0,0.00013948,2]
[401236831,1768062670561,1000.0,0.00013948,2]
[401236832,1768062908258,4002.505237,7.945e-05,2]
[401236836,1768063111651,272.39,0.00014436,2]
[401236837,1768063206332,200.0,0.00014418,2]
[401236838,1768063208348,347.44,7.332e-05,2]
[401236839,1768063208548,347.44,7.702e-05,2]
[401236840,1768063208749,347.44,8.073e-05,2]
[401236841,1768063209216,347.44,8.444e-05,2]
[401236842,1768063210749,347.44,8.814e-05,2]
[401236843,1768063210946,347.44,9.185e-05,2]
[401236844,1768063211165,347.44,9.556e-05,2]
[401236845,1768063211376,347.44,9.927e-05,2]
[401236846,1768063211684,347.44,0.00010297,2]
[401236847,1768063211877,347.44,0.00010668,2]
[401236848,1768063212077,347.44,0.00011039,2]
[401236849,1768063212731,347.44,0.0001141,2]
[401236850,1768063212945,347.44,0.0001178,2]
[401236851,1768063213141,347.44,0.00012151,2]
[401236852,1768063213340,347.44,0.00012522,2]
[401236853,1768063213556,347.44,0.00012893,2]
[401236854,1768063213840,347.44,0.00013263,2]
[401236855,1768063214042,347.44,0.00013634,2]
[401236856,1768063214265,347.44,0.00014005,2]
[401236857,1768063214763,347.44,0.00014376,2]
[401236858,1768063318799,250.0,0.00014403,2]
[401236859,1768063401458,999.0,0.00014336,3]
[401236860,1768063407075,200.0,0.00014336,2]
[401236861,1768063510012,457.46,0.00014306,2]
[401236862,1768063680265,166.7,0.00014668,2]
[401236866,1768063832131,-1209.5,0.00014744,2]
[401236867,1768063832142,-272.0,0.00014744,2]
[401236868,1768063832152,-1000.0,0.00014812,2]
[401236869,1768063832162,-383.49410916,0.00014814,2]
[401236870,1768063832172,-1000.0,0.00014864,2]
[401236871,1768063832181,-1200.0,0.0001487,2]
[401236872,1768063832191,-300.0,0.00014871,2]
[401236873,1768063832202,-154.634883,0.00014871,2]
[401236874,1768063832214,-145.365117,0.00014871,2]
[401236875,1768063832224,-300.0,0.00014871,2]
[401236876,1768063832234,-150.8103405,0.00014872,2]
[401236877,1768063832243,-590.75676045,0.00014872,2]
[401236878,1768063832254,-160.64501848,0.00014872,2]
[401236879,1768063832264,-907.99108783,0.00014872,2]
[401236880,1768063832275,-343.41303468,0.00014872,2]
[401236881,1768063832285,-343.41303467,0.00014921,2]
[401236882,1768063832295,-150.0,0.0001496,2]
[401236883,1768063832305,-322.6107,0.0001496,2]
[401236884,1768063832314,-998.0,0.0001496,2]
[401236885,1768063832324,-510.93,0.00014961,2]
[401236886,1768063832333,-500.0,0.00014961,2]
[401236888,1768063832342,-200.0,0.00014961,2]
[401236890,1768063832353,-151.0,0.00014961,2]
[401236891,1768063832362,-553.64373807,0.00014961,2]
[401236894,1768063832371,-200.0,0.00014961,2]
[401236896,1768063832381,-151.0,0.00014961,2]
[401236897,1768063832391,-151.0,0.00014961,2]
[401236898,1768063832400,-151.0,0.00014961,2]
[401236899,1768063832410,-151.0,0.00014961,2]
[401236900,1768063832420,-151.0,0.00014961,2]
[401236901,1768063832429,-151.0,0.00014961,2]
[401236902,1768063832438,-151.0,0.00014961,2]
[401236903,1768063832447,-151.0,0.00014961,2]
[401236904,1768063832461,-151.0,0.00014961,2]
[401236905,1768063832471,-151.0,0.00014961,2]
[401236906,1768063832481,-151.0,0.00014961,2]
[401236907,1768063832490,-151.0,0.00014961,2]
[401236908,1768063832500,-151.0,0.00014961,2]
[401236909,1768063832510,-620.0,0.00014961,2]
[401236910,1768063832519,-151.0,0.00014961,2]
[401236911,1768063832529,-151.0,0.00014961,2]
[401236912,1768063832538,-151.0,0.00014961,2]
[401236913,1768063832548,-151.0,0.00014961,2]
[401236914,1768063832559,-151.0,0.00014961,2]
[401236915,1768063832569,-151.0,0.00014961,2]
[401236916,1768063832578,-151.0,0.00014961,2]
[401236917,1768063832588,-151.0,0.00014961,2]
[401236918,1768063832598,-151.0,0.00014961,2]
[401236919,1768063832608,-151.0,0.00014961,2]
[401236920,1768063832618,-250.0,0.00014961,2]
[401236921,1768063832627,-151.0,0.00014961,2]
[401236922,1768063832636,-151.0,0.00014961,2]
[401236923,1768063832645,-250.0,0.00014961,2]
[401236924,1768063832655,-151.0,0.00014961,2]
[401236925,1768063832664,-250.0,0.00014961,2]
[401236926,1768063832674,-250.0,0.00014961,2]
[401236927,1768063832684,-151.0,0.00014961,2]
[401236928,1768063832694,-250.0,0.00014961,2]
[401236929,1768063832703,-151.0,0.00014961,2]
[401236930,1768063832713,-260.89005731,0.00014961,2]
[401236931,1768063832723,-151.0,0.00014961,2]
[401236932,1768063832732,-151.0,0.00014961,2]
[401236933,1768063832741,-151.0,0.00014961,2]
[401236934,1768063832751,-2000.0,0.00014961,2]
[401236935,1768063832760,-2000.0,0.00014961,2]
[401236936,1768063832770,-2000.0,0.00014961,2]
[401236937,1768063832780,-2000.0,0.00014961,2]
[401236938,1768063832790,-2000.0,0.00014961,2]
[401236939,1768063832801,-2000.0,0.00014961,2]
[401236940,1768063832812,-250.0,0.00014961,2]
[401236941,1768063832821,-2000.0,0.00014961,2]
[401236942,1768063832833,-250.0,0.00014961,2]
[401236943,1768063832843,-2000.0,0.00014961,2]
[401236944,1768063832854,-250.0,0.00014961,2]
[401236945,1768063832864,-2000.0,0.00014961,2]
[401236946,1768063832874,-250.0,0.00014961,2]
[401236947,1768063832884,-2000.0,0.00014961,2]
[401236948,1768063832894,-250.0,0.00014961,2]
[401236949,1768063832905,-2000.0,0.00014961,2]
[401236950,1768063832916,-250.0,0.00014961,2]
[401236951,1768063832925,-2000.0,0.00014961,2]
[401236952,1768063832935,-250.0,0.00014961,2]
[401236953,1768063832945,-250.0,0.00014961,2]
[401236954,1768063832954,-250.0,0.00014961,2]
[401236955,1768063832964,-250.0,0.00014961,2]
[401236956,1768063832974,-7213.28,0.00014968,2]
[401236957,1768063832983,-999.99,0.00014968,2]
[401236958,1768063832992,-5443.65,0.00014968,2]
[401236959,1768063833002,-9999.99,0.00014969,2]
[401236960,1768063833011,-2639.33,0.00014969,2]